fUST/lending_fUST_20240118
["ID","MTS","AMOUNT","RATE_DAILY","PERIOD"]
[311977033,1705527046647,-500.0,0.00022191,2]
[311977034,1705527046656,-500.0,0.00022191,2]
[311977035,1705527046664,-500.0,0.00022191,2]
[311977036,1705527046675,-500.0,0.00022191,2]
[311977037,1705527046684,-174.74456145,0.00022191,2]
[311977038,1705527046694,-730.22,0.00022191,2]
[311977039,1705527046703,-500.0,0.00022191,2]
[311977040,1705527046712,-500.0,0.00022191,2]
[311977041,1705527046722,-476.19454961,0.00022191,2]
[311977042,1705527046731,-500.0,0.00022191,2]
[311977043,1705527046740,-500.0,0.00022191,2]
[311977044,1705527046750,-500.0,0.00022191,2]
[311977045,1705527046761,-500.0,0.00022191,2]
[311977046,1705527046771,-500.0,0.00022191,2]
[311977047,1705527046780,-500.0,0.00022191,2]
[311977048,1705527046792,-500.0,0.00022191,2]
[311977049,1705527046801,-500.0,0.00022191,2]
[311977050,1705527046811,-500.0,0.00022191,2]
[311977051,1705527046820,-500.0,0.00022191,2]
[311977052,1705527046829,-500.0,0.00022191,2]
[311977053,1705527046838,-524.15,0.00022191,2]
[311977054,1705527046847,-1000.0,0.00022191,2]
[311977055,1705527046856,-500.0,0.00022191,2]
[311977056,1705527046865,-500.0,0.00022191,2]
[311977057,1705527046874,-500.0,0.00022191,2]
[311977058,1705527046883,-500.0,0.00022191,2]
[311977059,1705527046892,-500.0,0.00022191,2]
[311977060,1705527046901,-258.19461194,0.00022191,2]
[311977061,1705527046910,-500.0,0.00022191,2]
[311977062,1705527046918,-500.0,0.00022191,2]
[311977063,1705527046928,-500.0,0.00022191,2]
[311977064,1705527046938,-500.0,0.00022191,2]
[311977065,1705527046949,-500.0,0.00022191,2]
[311977066,1705527046958,-500.0,0.00022191,2]
[311977067,1705527046968,-500.0,0.00022191,2]
[311977068,1705527046978,-794.27,0.00022191,2]
[311977069,1705527046989,-3265.16,0.00022191,2]
[311977070,1705527046998,-500.0,0.00022191,2]
[311977071,1705527047007,-500.0,0.00022191,2]
[311977072,1705527047016,-500.0,0.00022191,2]
[311977073,1705527047027,-500.0,0.00022191,2]
[311977074,1705527047036,-500.0,0.00022191,2]
[311977075,1705527047046,-500.0,0.00022191,2]
[311977076,1705527047055,-312.30825616,0.00022228,2]
[311977077,1705527047065,-500.0,0.00022327,2]
[311977078,1705527047075,-151.0,0.00022328,2]
[311977079,1705527047084,-151.0,0.00022328,2]
[311977080,1705527047094,-769.526302,0.00022328,2]
[311977081,1705527047104,-769.526302,0.00022328,2]
[311977082,1705527047114,-500.0,0.00022328,2]
[311977083,1705527047123,-500.0,0.00022328,2]
[311977084,1705527047133,-500.0,0.00022328,2]
[311977085,1705527047141,-457.80157163,0.00022328,2]
[311977086,1705527047150,-500.0,0.00022328,2]
[311977087,1705527047159,-500.0,0.00022328,2]
[311977088,1705527047169,-500.0,0.00022328,2]
[311977089,1705527047181,-500.0,0.00022328,2]
[311977090,1705527047191,-500.0,0.00022328,2]
[311977091,1705527047201,-500.0,0.00022328,2]
[311977092,1705527047211,-500.0,0.00022328,2]
[311977093,1705527047221,-500.0,0.00022328,2]
[311977094,1705527047233,-539.85514961,0.00022328,2]
[311977095,1705527047242,-500.0,0.00022328,2]
[311977096,1705527047252,-608.05,0.00022328,2]
[311977097,1705527047264,-575.88,0.00022328,2]
[311977098,1705527047275,-500.0,0.00022328,2]
[311977099,1705527047284,-671.58,0.00022328,2]
[311977100,1705527047293,-500.0,0.00022328,2]
[311977101,1705527047303,-500.0,0.00022328,2]
[311977102,1705527047313,-500.0,0.00022328,2]
[311977103,1705527047322,-500.0,0.00022328,2]
[311977104,1705527047331,-500.0,0.00022328,2]
[311977105,1705527047340,-502.8108887,0.00022328,2]
[311977106,1705527047349,-500.0,0.00022328,2]
[311977107,1705527047358,-500.0,0.00022328,2]
[311977108,1705527047432,-522.52346659,0.00022328,2]
[311977109,1705527047441,-500.0,0.00022328,2]
[311977110,1705527047451,-500.0,0.00022328,2]
[311977111,1705527047460,-200.08832143,0.00022328,2]
[311977112,1705527047469,-501.41975854,0.00022328,2]
[311977113,1705527047478,-500.0,0.00022328,2]
[311977114,1705527047487,-500.0,0.00022328,2]
[311977115,1705527047496,-500.0,0.00022328,2]
[311977116,1705527047505,-500.0,0.00022328,2]
[311977117,1705527047514,-500.0,0.00022328,2]
[311977118,1705527047524,-500.0,0.00022328,2]
[311977119,1705527047533,-500.0,0.00022328,2]
[311977120,1705527047543,-500.0,0.00022328,2]
[311977121,1705527047555,-500.0,0.00022328,2]
[311977122,1705527047566,-500.0,0.00022328,2]
[311977123,1705527047576,-500.0,0.00022328,2]
[311977124,1705527047586,-500.0,0.00022328,2]
[311977125,1705527047595,-500.0,0.00022328,2]
[311977126,1705527047605,-500.0,0.00022328,2]
[311977127,1705527047614,-500.0,0.00022328,2]
[311977128,1705527047623,-500.0,0.00022328,2]
[311977129,1705527047633,-500.0,0.00022328,2]
[311977130,1705527047642,-1242.34,0.00022328,2]
[311977131,1705527047651,-500.0,0.00022328,2]
[311977132,1705527047660,-643.11957261,0.00022328,2]
[311977133,1705527047669,-8145.56,0.00022328,2]
[311977134,1705527047680,-500.0,0.00022328,2]
[311977135,1705527047692,-500.0,0.00022328,2]
[311977136,1705527047701,-500.0,0.00022328,2]
[311977137,1705527047710,-500.0,0.00022328,2]
[311977138,1705527047721,-500.0,0.00022328,2]
[311977139,1705527047730,-500.0,0.00022328,2]
[311977140,1705527047739,-500.0,0.00022328,2]
[311977141,1705527047749,-500.0,0.00022328,2]
[311977142,1705527047759,-500.0,0.00022328,2]
[311977143,1705527047769,-500.0,0.00022328,2]
[311977144,1705527047779,-500.0,0.00022328,2]
[311977145,1705527047789,-1896.16,0.00022328,2]
[311977146,1705527047798,-500.0,0.00022328,2]
[311977147,1705527047807,-500.0,0.00022328,2]
[311977148,1705527047816,-500.0,0.00022328,2]
[311977149,1705527047825,-500.0,0.00022328,2]
[311977150,1705527047835,-2018.89,0.00022328,2]
[311977151,1705527047846,-1443.3,0.00022328,2]
[311977152,1705527047857,-500.0,0.00022328,2]
[311977153,1705527047867,-684.6,0.00022328,2]
[311977154,1705527047879,-198.17774365,0.00022328,2]
[311977155,1705527047890,-500.0,0.00022328,2]
[311977156,1705527047899,-500.0,0.00022328,2]
[311977157,1705527047910,-500.0,0.00022328,2]
[311977158,1705527047920,-500.0,0.00022328,2]
[311977159,1705527047931,-500.0,0.00022328,2]
[311977160,1705527047940,-3468.91,0.00022328,2]
[311977161,1705527047951,-500.0,0.00022328,2]
[311977162,1705527047960,-500.72509967,0.00022328,2]
[311977163,1705527047969,-500.0,0.00022328,2]
[311977164,1705527047978,-500.0,0.00022328,2]
[311977165,1705527047987,-500.0,0.00022328,2]
[311977166,1705527047996,-500.0,0.00022328,2]
[311977167,1705527048005,-500.0,0.00022328,2]
[311977168,1705527048014,-500.0,0.00022328,2]
[311977169,1705527048025,-500.0,0.00022328,2]
[311977170,1705527048035,-500.0,0.00022328,2]
[311977171,1705527048044,-500.0,0.00022328,2]
[311977172,1705527048053,-500.0,0.00022328,2]
[311977173,1705527048063,-500.0,0.00022328,2]
[311977174,1705527048072,-730.22,0.00022328,2]
[311977175,1705527048082,-500.0,0.00022328,2]
[311977176,1705527048092,-500.0,0.00022328,2]
[311977177,1705527048102,-535.93108189,0.00022328,2]
[311977178,1705527048111,-542.08068923,0.00022328,2]
[311977179,1705527048120,-500.0,0.00022328,2]
[311977180,1705527048129,-510.11734616,0.00022328,2]
[311977181,1705527048140,-500.0,0.00022328,2]
[311977182,1705527048148,-500.0,0.00022328,2]
[311977183,1705527048157,-500.0,0.00022328,2]
[311977184,1705527048166,-578.94678532,0.00022328,2]
[311977185,1705527048178,-500.0,0.00022328,2]
[311977186,1705527048188,-524.15,0.00022328,2]
[311977187,1705527048197,-1003.24708738,0.00022328,2]
[311977188,1705527048205,-500.0,0.00022328,2]
[311977189,1705527048215,-500.0,0.00022328,2]
[311977190,1705527048225,-500.0,0.00022328,2]
[311977191,1705527048234,-500.0,0.00022328,2]
[311977192,1705527048243,-500.0,0.00022328,2]
[311977193,1705527048251,-500.0,0.00022328,2]
[311977194,1705527048262,-500.0,0.00022328,2]
[311977195,1705527048272,-500.0,0.00022328,2]
[311977196,1705527048281,-500.0,0.00022328,2]
[311977197,1705527048290,-500.0,0.00022328,2]
[311977198,1705527048299,-500.0,0.00022328,2]
[311977199,1705527048308,-500.0,0.00022328,2]
[311977200,1705527048317,-794.27,0.00022328,2]
[311977201,1705527048326,-3265.16,0.00022328,2]
[311977202,1705527048335,-500.0,0.00022328,2]
[311977203,1705527048344,-500.0,0.00022328,2]
[311977204,1705527048355,-500.0,0.00022328,2]
[311977205,1705527048365,-500.0,0.00022328,2]
[311977206,1705527048374,-500.0,0.00022328,2]
[311977207,1705527048384,-166.666666,0.00022431,2]
[311977208,1705527048394,-500.0,0.00022464,2]
[311977209,1705527048403,-630.87398484,0.00022464,2]
[311977210,1705527048412,-500.0,0.00022465,2]
[311977211,1705527048421,-500.0,0.00022465,2]
[311977212,1705527048431,-500.0,0.00022465,2]
[311977213,1705527048441,-500.0,0.00022465,2]
[311977214,1705527048451,-500.0,0.00022465,2]
[311977215,1705527048462,-500.0,0.00022465,2]
[311977216,1705527048471,-153.49030981,0.00022465,2]
[311977217,1705527048482,-500.0,0.00022465,2]
[311977218,1705527048493,-500.0,0.00022465,2]
[311977219,1705527048504,-500.0,0.00022465,2]
[311977220,1705527048514,-575.88,0.00022465,2]
[311977221,1705527048524,-505.51,0.00022465,2]
[311977222,1705527048533,-671.58,0.00022465,2]
[311977223,1705527048542,-500.0,0.00022465,2]
[311977224,1705527048551,-500.0,0.00022465,2]
[311977225,1705527048560,-500.0,0.00022465,2]
[311977226,1705527048568,-500.0,0.00022465,2]
[311977227,1705527048578,-500.0,0.00022465,2]
[311977228,1705527048587,-500.0,0.00022465,2]
[311977229,1705527048596,-500.0,0.00022465,2]
[311977230,1705527048606,-500.0,0.00022465,2]
[311977231,1705527048615,-500.0,0.00022465,2]
[311977232,1705527048624,-500.0,0.00022465,2]
[311977233,1705527048634,-500.0,0.00022465,2]
[311977234,1705527048645,-500.0,0.00022465,2]
[311977235,1705527048654,-562.10402669,0.00022465,2]
[311977236,1705527048662,-500.0,0.00022465,2]
[311977237,1705527048672,-500.0,0.00022465,2]
[311977238,1705527048682,-500.0,0.00022465,2]
[311977239,1705527048690,-500.0,0.00022465,2]
[311977240,1705527048700,-500.0,0.00022465,2]
[311977242,1705527048710,-500.0,0.00022465,2]
[311977243,1705527048721,-500.0,0.00022465,2]
[311977244,1705527048731,-500.0,0.00022465,2]
[311977245,1705527048741,-500.0,0.00022465,2]
[311977246,1705527048750,-1242.34,0.00022465,2]
[311977247,1705527048760,-500.0,0.00022465,2]
[311977248,1705527048769,-8145.56,0.00022465,2]
[311977249,1705527048779,-500.0,0.00022465,2]
[311977250,1705527048788,-500.0,0.00022465,2]
[311977251,1705527048798,-500.0,0.00022465,2]
[311977252,1705527048808,-241.37531993,0.00022465,2]
[311977253,1705527048818,-500.0,0.00022465,2]
[311977254,1705527048827,-1896.16,0.00022465,2]
[311977255,1705527048836,-500.0,0.00022465,2]
[311977256,1705527048845,-2018.89,0.00022465,2]
[311977257,1705527048854,-1443.3,0.00022465,2]
[311977258,1705527048863,-500.0,0.00022465,2]
[311977259,1705527048934,-684.6,0.00022465,2]
[311977260,1705527048944,-500.0,0.00022465,2]
[311977261,1705527048954,-500.0,0.00022465,2]
[311977262,1705527048963,-500.0,0.00022465,2]
[311977263,1705527048973,-3468.91,0.00022465,2]
[311977264,1705527048982,-500.0,0.00022465,2]
[311977265,1705527048991,-500.0,0.00022465,2]
[311977266,1705527049002,-500.0,0.00022465,2]
[311977267,1705527049013,-500.0,0.00022465,2]
[311977268,1705527049022,-500.0,0.00022465,2]
[311977269,1705527049031,-500.0,0.00022465,2]
[311977270,1705527049040,-500.0,0.00022465,2]
[311977271,1705527049049,-500.0,0.00022465,2]
[311977272,1705527049058,-500.0,0.00022465,2]
[311977273,1705527049067,-500.0,0.00022465,2]
[311977274,1705527049076,-730.22,0.00022465,2]
[311977275,1705527049085,-500.0,0.00022465,2]
[311977276,1705527049094,-500.0,0.00022465,2]
[311977277,1705527049103,-500.0,0.00022465,2]
[311977278,1705527049112,-500.0,0.00022465,2]
[311977279,1705527049121,-500.0,0.00022465,2]
[311977280,1705527049130,-500.0,0.00022465,2]
[311977281,1705527049140,-524.15,0.00022465,2]
[311977282,1705527049149,-500.0,0.00022465,2]
[311977283,1705527049158,-500.0,0.00022465,2]
[311977284,1705527049167,-500.0,0.00022465,2]
[311977285,1705527049177,-421.22353423,0.00022465,2]
[311977286,1705527049187,-500.0,0.00022465,2]
[311977287,1705527049196,-500.0,0.00022465,2]
[311977288,1705527049205,-500.0,0.00022465,2]
[311977289,1705527049213,-500.0,0.00022465,2]
[311977290,1705527049224,-500.0,0.00022465,2]
[311977291,1705527049233,-794.27,0.00022465,2]
[311977292,1705527049242,-3265.16,0.00022465,2]
[311977293,1705527049251,-500.0,0.00022465,2]
[311977294,1705527049262,-500.0,0.00022465,2]
[311977295,1705527049271,-500.0,0.00022465,2]
[311977296,1705527049280,-500.0,0.00022465,2]
[311977297,1705527049289,-500.0,0.00022601,2]
[311977298,1705527049298,-151.0,0.00022602,2]
[311977299,1705527049307,-151.0,0.00022602,2]
[311977300,1705527049316,-270.58,0.00022602,2]
[311977301,1705527049325,-500.0,0.00022602,2]
[311977302,1705527049335,-500.0,0.00022602,2]
[311977303,1705527049343,-521.35,0.00022602,2]
[311977304,1705527049352,-500.0,0.00022602,2]
[311977305,1705527049361,-500.0,0.00022602,2]
[311977306,1705527049370,-500.0,0.00022602,2]
[311977307,1705527049379,-500.0,0.00022602,2]
[311977308,1705527049389,-575.88,0.00022602,2]
[311977309,1705527049398,-671.58,0.00022602,2]
[311977310,1705527049408,-461.05718927,0.00022602,2]
[311977311,1705527049417,-629.12,0.00022602,2]
[311977312,1705527049426,-393.9709161,0.00022602,2]
[311977313,1705527049435,-500.0,0.00022602,2]
[311977314,1705527049444,-500.0,0.00022602,2]
[311977315,1705527049454,-503.6558925,0.00022602,2]
[311977316,1705527049463,-500.0,0.00022602,2]
[311977317,1705527049472,-500.0,0.00022602,2]
[311977318,1705527049481,-500.0,0.00022602,2]
[311977319,1705527049490,-500.0,0.00022602,2]
[311977320,1705527049499,-500.0,0.00022602,2]
[311977321,1705527049508,-626.84555893,0.00022602,2]
[311977322,1705527049517,-500.0,0.00022602,2]
[311977323,1705527049526,-500.0,0.00022602,2]
[311977324,1705527049536,-280.72371038,0.00022602,2]
[311977325,1705527049546,-500.0,0.00022602,2]
[311977326,1705527049556,-500.0,0.00022602,2]
[311977327,1705527049566,-500.0,0.00022602,2]
[311977328,1705527049576,-1242.34,0.00022602,2]
[311977329,1705527049585,-500.0,0.00022602,2]
[311977330,1705527049596,-8145.56,0.00022602,2]
[311977331,1705527049606,-262.04807928,0.00022602,2]
[311977332,1705527049616,-500.0,0.00022602,2]
[311977333,1705527049625,-500.0,0.00022602,2]
[311977334,1705527049636,-500.0,0.00022602,2]
[311977335,1705527049645,-1896.16,0.00022602,2]
[311977336,1705527049654,-636.21,0.00022602,2]
[311977337,1705527049663,-2018.89,0.00022602,2]
[311977338,1705527049673,-1443.3,0.00022602,2]
[311977339,1705527049683,-500.0,0.00022602,2]
[311977340,1705527049693,-684.6,0.00022602,2]
[311977341,1705527049702,-500.0,0.00022602,2]
[311977342,1705527049713,-500.0,0.00022602,2]
[311977343,1705527049723,-3468.91,0.00022602,2]
[311977344,1705527049734,-500.0,0.00022602,2]
[311977345,1705527049744,-500.0,0.00022602,2]
[311977346,1705527049753,-500.0,0.00022602,2]
[311977347,1705527049764,-500.0,0.00022602,2]
[311977348,1705527049774,-500.0,0.00022602,2]
[311977349,1705527049784,-500.0,0.00022602,2]
[311977350,1705527049796,-500.0,0.00022602,2]
[311977351,1705527049807,-500.0,0.00022602,2]
[311977352,1705527049817,-730.22,0.00022602,2]
[311977353,1705527049826,-454.48626207,0.00022602,2]
[311977354,1705527049835,-500.0,0.00022602,2]
[311977355,1705527049846,-500.0,0.00022602,2]
[311977356,1705527049855,-500.0,0.00022602,2]
[311977357,1705527049864,-500.0,0.00022602,2]
[311977358,1705527049873,-524.15,0.00022602,2]
[311977359,1705527049882,-500.0,0.00022602,2]
[311977360,1705527049893,-500.0,0.00022602,2]
[311977361,1705527049903,-500.0,0.00022602,2]
[311977362,1705527049913,-500.0,0.00022602,2]
[311977363,1705527049923,-500.0,0.00022602,2]
[311977364,1705527049932,-500.0,0.00022602,2]
[311977365,1705527049941,-500.0,0.00022602,2]
[311977366,1705527049951,-794.27,0.00022602,2]
[311977367,1705527049962,-3265.16,0.00022602,2]
[311977368,1705527049972,-500.0,0.00022602,2]
[311977369,1705527049982,-500.0,0.00022602,2]
[311977370,1705527049994,-500.0,0.00022602,2]
[311977371,1705527050005,-500.0,0.00022602,2]
[311977372,1705527050014,-769.526302,0.00022739,2]
[311977373,1705527050023,-769.526302,0.00022739,2]
[311977374,1705527050033,-219.09025803,0.00022739,2]
[311977375,1705527050042,-500.0,0.00022739,2]
[311977376,1705527050052,-500.0,0.00022739,2]
[311977377,1705527050061,-500.0,0.00022739,2]
[311977378,1705527050071,-500.0,0.00022739,2]
[311977379,1705527050079,-575.88,0.00022739,2]
[311977380,1705527050089,-671.58,0.00022739,2]
[311977381,1705527050098,-500.0,0.00022739,2]
[311977382,1705527050108,-500.0,0.00022739,2]
[311977383,1705527050117,-500.0,0.00022739,2]
[311977384,1705527050126,-500.0,0.00022739,2]
[311977385,1705527050135,-500.0,0.00022739,2]
[311977386,1705527050145,-500.0,0.00022739,2]
[311977387,1705527050155,-500.0,0.00022739,2]
[311977388,1705527050164,-500.0,0.00022739,2]
[311977389,1705527050172,-500.0,0.00022739,2]
[311977390,1705527050185,-1242.34,0.00022739,2]
[311977391,1705527050194,-8145.56,0.00022739,2]
[311977392,1705527050203,-500.0,0.00022739,2]
[311977393,1705527050212,-500.0,0.00022739,2]
[311977394,1705527050222,-1896.16,0.00022739,2]
[311977395,1705527050231,-2018.89,0.00022739,2]
[311977396,1705527050240,-1443.3,0.00022739,2]
[311977397,1705527050303,-500.0,0.00022739,2]
[311977398,1705527050319,-684.6,0.00022739,2]
[311977399,1705527050329,-500.0,0.00022739,2]
[311977400,1705527050338,-500.0,0.00022739,2]
[311977401,1705527050347,-3468.91,0.00022739,2]
[311977402,1705527050357,-500.0,0.00022739,2]
[311977403,1705527050366,-500.0,0.00022739,2]
[311977404,1705527050375,-500.0,0.00022739,2]
[311977405,1705527050384,-500.0,0.00022739,2]
[311977406,1705527050393,-500.0,0.00022739,2]
[311977407,1705527050402,-500.0,0.00022739,2]
[311977408,1705527050411,-500.0,0.00022739,2]
[311977409,1705527050420,-730.22,0.00022739,2]
[311977410,1705527050430,-500.0,0.00022739,2]
[311977411,1705527050439,-500.0,0.00022739,2]
[311977412,1705527050447,-267.75,0.00022739,2]
[311977413,1705527050456,-524.15,0.00022739,2]
[311977414,1705527050466,-500.0,0.00022739,2]
[311977415,1705527050475,-500.0,0.00022739,2]
[311977416,1705527050484,-500.0,0.00022739,2]
[311977417,1705527050494,-500.0,0.00022739,2]
[311977418,1705527050503,-500.0,0.00022739,2]
[311977419,1705527050512,-500.0,0.00022739,2]
[311977420,1705527050521,-794.27,0.00022739,2]
[311977421,1705527050530,-3265.16,0.00022739,2]
[311977422,1705527050540,-500.0,0.00022739,2]
[311977423,1705527050549,-500.0,0.00022739,2]
[311977424,1705527050558,-500.0,0.00022739,2]
[311977425,1705527050567,-500.0,0.00022739,2]
[311977426,1705527050576,-500.0,0.00022774,2]
[311977427,1705527050585,-500.0,0.00022774,2]
[311977428,1705527050595,-280.0,0.0002283,7]
[311977429,1705527050605,-500.0,0.00022875,2]
[311977430,1705527050614,-217.38257896,0.00022876,2]
[311977431,1705527050623,-500.0,0.00022876,2]
[311977432,1705527050632,-166.12,0.00022876,2]
[311977433,1705527050642,-500.0,0.00022876,2]
[311977434,1705527050650,-575.88,0.00022876,2]
[311977435,1705527050659,-671.58,0.00022876,2]
[311977436,1705527050668,-500.0,0.00022876,2]
[311977437,1705527050677,-500.0,0.00022876,2]
[311977438,1705527050687,-500.0,0.00022876,2]
[311977439,1705527050696,-500.0,0.00022876,2]
[311977440,1705527050706,-500.0,0.00022876,2]
[311977441,1705527050715,-500.0,0.00022876,2]
[311977442,1705527050725,-500.0,0.00022876,2]
[311977443,1705527050734,-500.0,0.00022876,2]
[311977444,1705527050744,-500.0,0.00022876,2]
[311977445,1705527050753,-1242.34,0.00022876,2]
[311977446,1705527050762,-8145.56,0.00022876,2]
[311977447,1705527050771,-500.0,0.00022876,2]
[311977448,1705527050781,-638.41092059,0.00022876,2]
[311977449,1705527050790,-1896.16,0.00022876,2]
[311977450,1705527050798,-2018.89,0.00022876,2]
[311977451,1705527050807,-1443.3,0.00022876,2]
[311977452,1705527050816,-684.6,0.00022876,2]
[311977453,1705527050825,-500.0,0.00022876,2]
[311977454,1705527050834,-3468.91,0.00022876,2]
[311977455,1705527050843,-500.0,0.00022876,2]
[311977456,1705527050852,-500.0,0.00022876,2]
[311977457,1705527050861,-500.0,0.00022876,2]
[311977458,1705527050870,-500.0,0.00022876,2]
[311977459,1705527050880,-472.35327518,0.00022876,2]
[311977460,1705527050889,-500.0,0.00022876,2]
[311977461,1705527050899,-500.0,0.00022876,2]
[311977462,1705527050909,-730.22,0.00022876,2]
[311977463,1705527050918,-336.59,0.00022876,2]
[311977464,1705527050928,-500.0,0.00022876,2]
[311977465,1705527050937,-524.15,0.00022876,2]
[311977466,1705527050947,-500.0,0.00022876,2]
[311977467,1705527050956,-500.0,0.00022876,2]
[311977468,1705527050966,-500.0,0.00022876,2]
[311977469,1705527050975,-500.0,0.00022876,2]
[311977470,1705527050984,-500.0,0.00022876,2]
[311977471,1705527050993,-500.0,0.00022876,2]
[311977472,1705527051003,-794.27,0.00022876,2]
[311977473,1705527051012,-3265.16,0.00022876,2]
[311977474,1705527051022,-500.0,0.00022876,2]
[311977475,1705527051031,-500.0,0.00022876,2]
[311977476,1705527051041,-500.0,0.00022876,2]
[311977477,1705527051051,-166.666666,0.00022944,2]
[311977478,1705527051060,-151.0,0.00023013,2]
[311977479,1705527051070,-151.0,0.00023013,2]
[311977480,1705527051080,-328.46,0.00023013,2]
[311977481,1705527051090,-575.88,0.00023013,2]
[311977482,1705527051099,-671.58,0.00023013,2]
[311977483,1705527051108,-500.0,0.00023013,2]
[311977484,1705527051117,-500.0,0.00023013,2]
[311977485,1705527051127,-500.0,0.00023013,2]
[311977486,1705527051136,-263.97,0.00023013,2]
[311977487,1705527051145,-500.0,0.00023013,2]
[311977488,1705527051155,-500.0,0.00023013,2]
[311977489,1705527051164,-500.0,0.00023013,2]
[311977490,1705527051174,-1242.34,0.00023013,2]
[311977491,1705527051187,-8145.56,0.00023013,2]
[311977492,1705527051196,-500.0,0.00023013,2]
[311977493,1705527051206,-1896.16,0.00023013,2]
[311977494,1705527051215,-2018.89,0.00023013,2]
[311977495,1705527051225,-1443.3,0.00023013,2]
[311977496,1705527051235,-684.6,0.00023013,2]
[311977497,1705527051244,-500.0,0.00023013,2]
[311977498,1705527051253,-3468.91,0.00023013,2]
[311977499,1705527051265,-500.0,0.00023013,2]
[311977500,1705527051274,-500.0,0.00023013,2]
[311977501,1705527051283,-500.0,0.00023013,2]
[311977502,1705527051293,-498.4085212,0.00023013,2]
[311977503,1705527051303,-500.0,0.00023013,2]
[311977504,1705527051313,-500.0,0.00023013,2]
[311977505,1705527051322,-730.22,0.00023013,2]
[311977506,1705527051332,-500.0,0.00023013,2]
[311977507,1705527051342,-524.15,0.00023013,2]
[311977508,1705527051351,-500.0,0.00023013,2]
[311977509,1705527051361,-337.81788515,0.00023013,2]
[311977510,1705527051370,-500.0,0.00023013,2]
[311977511,1705527051379,-500.0,0.00023013,2]
[311977512,1705527051388,-794.27,0.00023013,2]
[311977513,1705527051397,-3265.16,0.00023013,2]
[311977514,1705527051406,-621.87,0.00023013,2]
[311977515,1705527051415,-500.0,0.00023013,2]
[311977516,1705527051424,-500.0,0.00023013,2]
[311977517,1705527051433,-500.0,0.00023022,2]
[311977518,1705527051442,-5000.0,0.00023041,2]
[311977519,1705527051451,-739.36257327,0.00023047,2]
[311977520,1705527051460,-2768.4301826,0.00023047,2]
[311977521,1705527051469,-1586.85584172,0.00023047,2]
[311977522,1705527051478,-5000.0,0.00023047,2]
[311977523,1705527051487,-1948.27652856,0.00023047,2]
[311977524,1705527051496,-24539.68976551,0.00023047,2]
[311977525,1705527051561,-769.526302,0.00023047,2]
[311977526,1705527051570,-769.526302,0.00023047,2]
[311977527,1705527051579,-5645.66958383,0.0002306,2]
[311977528,1705527051588,-500.0,0.00023149,2]
[311977529,1705527051597,-575.88,0.0002315,2]
[311977530,1705527051606,-671.58,0.0002315,2]
[311977531,1705527051615,-500.0,0.0002315,2]
[311977532,1705527051625,-500.0,0.0002315,2]
[311977533,1705527051635,-500.0,0.0002315,2]